bitfinex/quotes_SOLUSD_20241001
["timestamp","ask_amount","ask_price","bid_price","bid_amount"]
[1727815937516,6.2479,145.81,145.75,17.1524]
[1727815937722,6.2479,145.81,145.66,34.3245]
[1727815937723,6.8563,145.86,145.76,1.37186024]
[1727815937924,6.2262,145.87,145.78,17.1488]
[1727815938223,13.0816,145.87,145.81,6.8581]
[1727815938426,13.0816,145.87,145.82,6.8577]
[1727815938427,6.2262,145.87,145.82,6.8577]
[1727815938756,15.8533252,145.91,145.86,6.8555]
[1727815939060,15.8533252,145.91,145.78,23.776884]
[1727815939341,15.8533252,145.91,145.79,20.0]
[1727815939525,15.8533252,145.91,145.87,6.8553]
[1727815940149,0.8299252,145.91,145.88,1.37069828]
[1727815940341,0.8299252,145.91,145.83,52.51300519]
[1727815940342,0.8299252,145.91,145.9,6.854]
[1727815940541,0.8299252,145.91,145.87,6.8549]
[1727815940744,0.8299252,145.91,145.85,17.1401]
[1727815940745,0.8299252,145.91,145.86,6.8558]
[1727815940915,7.6835252,145.91,145.85,23.9959]
[1727815941344,0.8299252,145.91,145.77,52.51300519]
[1727815941527,0.8299252,145.91,145.81,17.1446]
[1727815941728,6.8544,145.9,145.83,6.857]
[1727815941944,0.8299252,145.91,145.86,6.8556]
[1727815942151,0.8299252,145.91,145.88,6.8547]
[1727815942531,0.8299252,145.91,145.79,86.80680519]
[1727815942735,0.8299252,145.91,145.86,23.9955]
[1727815942954,0.8299252,145.91,145.87,6.8551]
[1727815943131,0.8299252,145.91,145.82,17.1433]
[1727815943325,6.8545,145.89,145.84,6.8566]
[1727815943531,0.8299252,145.91,145.82,24.0006]
[1727815943742,0.8299252,145.91,145.82,17.1433]
[1727815943921,6.8555,145.87,145.82,24.001]
[1727815944140,23.776884,145.9,145.76,52.51300519]
[1727815944442,0.8299252,145.91,145.83,6.8572]
[1727815944443,6.8549,145.88,145.83,6.8572]
[1727815944842,0.8299252,145.91,145.84,1.37123183]
[1727815945056,7.6838252,145.91,145.85,6.8559]
[1727815945232,7.6838252,145.91,145.9,6.854]
[1727815945233,0.8299252,145.91,145.9,6.854]
[1727815945430,0.8299252,145.91,145.88,17.1369]
[1727815945634,0.8299252,145.91,145.9,6.854]
[1727815945845,0.8299252,145.91,145.9,26.854]
[1727815946162,0.8299252,145.91,145.9,6.854]
[1727815946365,0.8299252,145.91,145.88,17.1369]
[1727815946843,0.8299252,145.91,145.9,6.854]
[1727815948052,0.8299252,145.91,145.88,17.1369]
[1727815948362,0.8299252,145.91,145.9,6.64288]
[1727815948539,0.8299252,145.91,145.9,102.93276919]
[1727815948742,0.8299252,145.91,145.9,79.15588519]
[1727815948945,0.8299252,145.91,145.9,132.93276919]
[1727815950960,15.8881,146.03,146.0,6.8492]
[1727815951165,15.8881,146.03,145.98,17.1245]
[1727815951336,6.8485,146.02,145.95,34.2581]
[1727815951655,6.8485,146.02,145.96,6.8511]
[1727815951963,15.8881,146.03,145.92,17.1326]
[1727815952151,6.85,145.99,145.94,6.8516]
[1727815952459,15.8881,146.03,145.93,30.0]
[1727815952460,6.8502,145.98,145.93,30.0]
[1727815952672,6.8508,145.97,145.93,30.0]
[1727815952958,6.8508,145.97,145.92,23.9855]
[1727815953164,6.8501,145.99,145.93,6.8524]
[1727815953345,6.8493,146.0,145.92,17.1326]
[1727815953544,15.8881,146.03,145.94,6.852]
[1727815953753,6.8498,145.99,145.94,6.852]
[1727815954270,15.8881,146.03,145.92,17.1326]
[1727815954572,6.8503,145.98,145.93,6.8525]
[1727815954973,6.8498,145.99,145.93,6.8525]
[1727815955877,6.8498,145.99,145.94,6.852]
[1727815957969,15.8881,146.03,145.92,17.1326]
[1727815958277,6.8512,145.96,145.93,30.0]
[1727815958461,6.8517,145.95,145.9,6.8539]
[1727815958951,6.8512,145.96,145.89,17.1359]
[1727815959258,6.8512,145.96,145.91,6.8534]
[1727815960955,6.8516,145.95,145.9,6.8539]
[1727815961152,20.0,146.01,145.81,52.51300519]
[1727815961450,6.8545,145.89,145.78,86.80980519]
[1727815961653,6.8554,145.87,145.83,17.143]
[1727815961868,39.565,145.92,145.8,17.1463]
[1727815962077,6.8553,145.88,145.83,6.857]
[1727815962398,39.565,145.92,145.8,17.1463]
[1727815962561,6.8548,145.89,145.84,6.8564]
[1727815963980,6.8558,145.87,145.82,24.0013]
[1727815964157,39.565,145.92,145.82,17.1436]
[1727815964366,6.8548,145.89,145.83,6.8568]
[1727815964553,6.8549,145.88,145.83,6.8568]
[1727815964759,39.565,145.92,145.83,6.8568]
[1727815964959,39.565,145.92,145.82,17.1436]
[1727815965175,6.855,145.88,145.83,6.8572]
[1727815965492,6.8559,145.86,145.82,17.1436]
[1727815965658,6.8554,145.87,145.82,24.0012]
[1727815965981,6.8554,145.87,145.83,6.8572]
[1727815966356,22.4316,145.92,145.84,17.1411]
[1727815966570,6.8558,145.87,145.81,6.8582]
[1727815966882,37.1339,145.91,145.74,52.51300519]
[1727815966883,20.0,145.91,145.74,52.51300519]
[1727815967184,20.0,145.91,145.77,17.15]
[1727815967185,17.1378,145.88,145.77,17.15]
[1727815967682,6.8578,145.82,145.77,24.0096]
[1727815967877,23.776884,145.87,145.77,17.15]
[1727815968284,17.1378,145.88,145.77,17.15]
[1727815968477,17.1378,145.88,145.79,6.8591]
[1727815968677,6.8568,145.84,145.79,6.859]
[1727815968874,6.8581,145.82,145.77,24.0099]
[1727815971960,6.8581,145.82,145.78,6.8595]
[1727815972378,38.3287349,145.91,145.77,34.2998]
[1727815972573,20.0,145.91,145.79,17.1474]
[1727815972782,17.1418,145.85,145.76,30.0]
[1727815973087,17.1418,145.85,145.75,6.8606]
[1727815973088,6.8591,145.79,145.75,6.8606]
[1727815973289,6.8601,145.77,145.73,24.0163]
[1727815973596,6.8587,145.8,145.76,6.8605]
[1727815973774,21.3065,145.81,145.76,6.8605]
[1727815973958,6.1224,145.86,145.72,34.3117]
[1727815974166,6.1224,145.86,145.72,86.82470519]
[1727815974387,12.9783,145.86,145.81,6.8581]
[1727815975062,6.1224,145.86,145.81,17.1449]
[1727815975470,6.8563,145.85,145.81,17.1449]
[1727815975664,6.1224,145.86,145.81,17.1449]
[1727815975883,12.9783,145.86,145.81,24.0031]
[1727815976070,6.8587,145.8,145.76,6.8602]
[1727815976483,20.0,145.85,145.74,17.1534]
[1727815976787,6.8595,145.79,145.74,24.0148]
[1727815976980,6.8598,145.78,145.74,24.0148]
[1727815977381,23.776884,145.83,145.73,6.8618]
[1727815977600,6.8602,145.77,145.72,6.8623]
[1727815978205,6.8602,145.77,145.71,17.1568]
[1727815978206,6.8602,145.77,145.73,6.8619]
[1727815978407,20.0,145.85,145.73,17.1544]
[1727815978702,20.0,145.85,145.75,6.8606]
[1727815978703,6.8587,145.8,145.75,6.8606]
[1727815979001,6.8582,145.81,145.76,6.8603]
[1727815979214,20.0,145.85,145.77,17.1496]
[1727815979435,6.8583,145.81,145.77,24.0096]
[1727815979697,6.8573,145.83,145.77,17.1496]
[1727815979923,6.8573,145.83,145.78,6.8596]
[1727815980413,6.8583,145.81,145.77,17.1496]
[1727815980628,6.8602,145.77,145.69,34.3176]
[1727815980903,20.0,145.81,145.71,17.1569]
[1727815981198,6.8602,145.77,145.72,6.8622]
[1727815981805,23.776884,145.81,145.72,6.8622]
[1727815981993,6.8597,145.78,145.73,6.8619]
[1727815982188,17.1415,145.85,145.69,34.3176]
[1727815982509,6.1224,145.86,145.77,17.1496]
[1727815982690,6.8593,145.79,145.74,17.1536]
[1727815982879,6.8601,145.77,145.72,6.862]
[1727815983089,6.8601,145.77,145.73,6.8618]
[1727815983382,40.4023,145.86,145.7,20.0]
[1727815983586,6.1224,145.86,145.73,34.3084]
[1727815983790,20.0,145.85,145.74,1.37197298]
[1727815984004,6.1224,145.86,145.83,6.8568]
[1727815984209,6.1224,145.86,145.82,17.144]
[1727815985083,6.1224,145.86,145.78,52.51300519]
[1727815985084,22.0986,145.92,145.85,17.1403]
[1727815985384,6.8536,145.91,145.86,6.8558]
[1727815985700,22.0986,145.92,145.85,17.1403]
[1727815985908,6.8535,145.91,145.86,6.8558]
[1727815986110,22.0986,145.92,145.87,6.8553]
[1727815986111,28.9519,145.92,145.87,6.8553]
[1727815986411,28.9519,145.92,145.81,34.2896]
[1727815986412,22.0986,145.92,145.88,1.37090831]
[1727815986596,22.0986,145.92,145.9,6.8539]
[1727815986783,22.0986,145.92,145.87,17.1375]
[1727815986784,22.0986,145.92,145.88,1.37066561]
[1727815986983,1.19339407,146.03,145.89,18.50556214]
[1727815986984,29.3147,145.97,145.89,18.50556214]
[1727815987202,22.4637,145.97,145.9,1.37046513]
[1727815987506,22.4637,145.97,145.89,17.135]
[1727815988313,22.4637,145.97,145.92,6.853]
[1727815988503,29.3148,145.97,145.91,6.8534]
[1727815988694,6.8512,145.96,145.91,6.8534]
[1727815989003,6.8484,146.02,145.9,52.51300519]
[1727815989186,6.8484,146.02,145.96,6.8511]
[1727815989383,6.8489,146.01,145.96,6.8511]
[1727815989712,22.6071,146.03,145.94,17.1292]
[1727815990003,0.8299252,146.05,146.01,6.8488]
[1727815990205,0.8299252,146.05,146.02,1.36950642]
[1727815990390,0.8299252,146.05,146.02,8.21760642]
[1727815990707,7.6769252,146.05,145.99,23.973]
[1727815991002,7.6769252,146.05,146.04,6.8474]
[1727815991003,0.8299252,146.05,146.04,6.8474]
[1727815991218,0.8299252,146.05,146.04,8.21656301]
[1727815991912,0.8299252,146.05,146.04,6.8474]
[1727815992423,0.8299252,146.05,146.04,50.624284]
[1727815992616,15.9097,146.2,146.14,6.8427]
[1727815992823,15.9097,146.2,146.15,8.21030543]
[1727815992983,15.9097,146.2,146.11,17.1092]
[1727815993190,15.9097,146.2,146.05,20.0]
[1727815993414,24.9560734,146.2,146.07,17.1142]
[1727815993700,6.8436,146.12,146.07,17.1142]
[1727815995301,20.0,146.17,146.07,18.48308092]
[1727815995513,6.8421,146.16,146.1,6.8445]
[1727815995802,6.8421,146.16,146.1,8.21301538]
[1727815996184,6.8421,146.16,146.1,6.8445]
[1727815996392,6.8413,146.18,146.12,6.8436]
[1727815996792,15.9097,146.2,146.1,23.9552]
[1727815997192,6.8413,146.18,146.11,8.21249954]
[1727815997595,15.9097,146.2,146.1,17.1109]
[1727815997805,24.9560734,146.2,146.1,17.1109]
[1727815998200,40.878084,146.19,146.08,6.8452]
[1727815998403,20.0,146.18,146.08,6.8452]
[1727815999103,6.8433,146.13,146.07,6.8459]
[1727815999302,6.8426,146.15,146.08,6.8455]
[1727815999512,6.8427,146.14,146.08,6.8455]
[1727816001310,20.0,146.18,146.06,17.1154]
[1727816001632,6.8418,146.16,146.1,6.8445]
[1727816001927,40.878084,146.19,146.12,6.8436]
[1727816001928,20.0,146.19,146.12,6.8436]
[1727816002230,15.9097,146.2,146.14,6.8427]
[1727816002448,15.9097,146.2,146.15,1.36816883]
[1727816002449,22.7496,146.2,146.15,1.36816883]
[1727816002619,15.9097,146.2,146.15,8.20996883]
[1727816002929,15.9097,146.2,146.14,6.8426]
[1727816003230,15.9097,146.2,146.15,6.8421]
[1727816003824,15.9097,146.2,146.13,6.8429]
[1727816004017,22.7499,146.2,146.15,6.8422]
[1727816004224,15.9097,146.2,146.12,17.1089]
[1727816004416,6.8404,146.19,146.14,6.8426]
[1727816004822,22.75,146.2,146.14,6.8426]
[1727816005009,15.9097,146.2,146.12,23.9525]
[1727816005537,6.8422,146.15,146.09,6.8447]
[1727816005711,6.8422,146.15,146.1,6.8444]
[1727816006610,15.9097,146.2,146.1,17.1104]
[1727816006831,6.8411,146.18,146.13,6.8431]
[1727816007019,15.9097,146.2,146.13,17.1079]
[1727816007325,6.8409,146.18,146.13,17.1079]
[1727816007531,15.9097,146.2,146.13,17.1079]
[1727816007733,15.9097,146.2,146.15,6.8418]
[1727816007902,15.9097,146.2,146.16,1.36808415]
[1727816008105,15.9097,146.2,146.16,8.20978415]
[1727816008310,15.9097,146.2,146.16,6.8417]
[1727816008511,15.9097,146.2,146.13,17.1079]
[1727816008812,6.8415,146.17,146.13,17.1079]
[1727816009306,15.9097,146.2,146.13,17.1079]
[1727816010311,6.8405,146.19,146.14,6.8426]
[1727816010930,15.9097,146.2,146.16,6.8417]
[1727816011126,15.9097,146.2,146.15,6.8421]
[1727816011127,22.7496,146.2,146.15,6.8421]
[1727816011531,15.9097,146.2,146.16,6.8417]
[1727816011741,15.9097,146.2,146.17,8.2092081]
[1727816012632,1.1375257,146.21,146.18,6.8407]
[1727816012836,1.1375257,146.21,146.17,1.3680081]
[1727816012837,1.1375257,146.21,146.17,6.8412]
[1727816013021,6.8399,146.2,146.16,6.8418]
[1727816013342,1.1375257,146.21,146.15,17.1047]
[1727816013857,6.84,146.2,146.15,23.9469]
[1727816014031,7.9770257,146.21,146.16,6.8417]
[1727816014615,1.1375257,146.21,146.17,17.1024]
[1727816014944,1.1375257,146.21,146.2,6.8399]
[1727816015520,1.1375257,146.21,146.19,6.8403]
[1727816016215,6.8414,146.17,146.12,6.8436]
[1727816016440,37.1017,146.19,146.1,0.78355732]
[1727816016611,23.776884,146.18,146.1,0.78355732]
[1727816016813,6.8423,146.15,146.11,6.8441]
[1727816017136,6.8423,146.15,146.1,0.78355732]
[1727816017345,6.8428,146.14,146.1,0.78355732]
[1727816017724,6.8441,146.11,146.1,0.78355732]
[1727816018736,6.8466,146.06,145.99,34.2479]
[1727816018923,43.776884,146.13,146.01,17.1219]
[1727816019127,6.845,146.1,146.04,6.8474]
[1727816019331,20.0,146.13,146.01,17.1219]
[1727816019332,6.845,146.09,146.01,17.1219]
[1727816019538,6.845,146.09,146.03,6.8478]
[1727816019912,6.845,146.09,146.04,6.8473]
[1727816021341,6.8445,146.11,146.05,6.8465]
[1727816022220,6.8446,146.1,146.05,6.8465]
[1727816023515,39.1947,146.14,145.99,34.2479]
[1727816023516,20.0,146.12,145.99,34.2479]
[1727816023946,22.0877,146.14,145.99,34.2479]
[1727816024244,6.8456,146.08,146.03,23.9673]
[1727816024652,6.8464,146.07,146.02,6.8482]
[1727816024839,6.8461,146.07,146.02,6.8483]
[1727816025224,22.0877,146.14,146.05,17.1173]
[1727816025418,6.8441,146.11,146.06,8.21532032]
[1727816025621,6.8441,146.11,146.06,6.8464]
[1727816026231,6.8441,146.11,146.05,17.1173]
[1727816026550,6.8441,146.11,146.07,6.8459]
[1727816026740,22.0877,146.14,146.02,17.1208]
[1727816026930,6.8447,146.1,146.05,6.8468]
[1727816027534,6.8435,146.13,146.08,6.8454]
[1727816027739,6.8435,146.13,146.08,8.21424191]
[1727816028323,28.9304,146.14,146.09,6.8448]
[1727816028545,22.0877,146.14,146.11,6.8441]
[1727816028734,6.8422,146.16,146.12,1.36855971]
[1727816029136,6.8422,146.16,146.12,8.21215971]
[1727816029334,6.8422,146.16,146.12,6.8436]
[1727816029534,6.8422,146.16,146.11,6.8441]
[1727816029764,21.2445,146.19,146.14,6.8426]
[1727816029936,21.2445,146.19,146.16,6.8418]
[1727816030251,21.2445,146.19,146.14,17.1057]
[1727816030452,21.2445,146.19,146.07,86.74210519]
[1727816030453,21.2445,146.19,146.11,17.11]
[1727816030625,6.8419,146.16,146.11,17.11]
[1727816030833,21.2445,146.19,146.07,86.74210519]
[1727816030834,6.8437,146.12,146.08,17.1137]
[1727816031033,20.0,146.18,146.08,17.1137]
[1727816031724,6.8437,146.12,146.08,17.1137]
[1727816031927,6.8437,146.12,146.07,6.8459]
[1727816032544,6.8445,146.11,146.06,6.8464]
[1727816032719,6.8446,146.1,146.05,23.9638]
[1727816033125,17.1088,146.13,146.04,30.0]
[1727816033346,23.776884,146.17,145.99,34.2479]
[1727816033650,20.0,146.14,146.04,17.1178]
[1727816033849,20.0,146.14,146.05,6.8468]
[1727816034037,20.0,146.14,146.04,23.9651]
[1727816034239,20.0,146.14,146.06,6.8463]
[1727816034441,20.0,146.14,146.04,17.1178]
[1727816034442,6.8446,146.1,146.04,17.1178]
[1727816034742,6.8446,146.1,146.05,6.8468]
[1727816035246,6.8442,146.11,146.06,6.846]
[1727816036751,17.1079,146.14,146.04,17.1178]
[1727816036948,43.776884,146.13,146.04,17.1178]
[1727816037248,43.776884,146.13,145.99,34.2479]
[1727816037439,6.8456,146.08,146.03,6.8478]
[1727816037642,6.8466,146.06,146.01,23.97]
[1727816038246,39.7257,146.09,145.95,58.13720519]
[1727816038422,39.7257,146.09,146.0,6.8488]
[1727816038423,6.8469,146.05,146.0,6.8488]
[1727816038827,6.8469,146.05,145.99,17.1237]
[1727816039038,39.7257,146.09,146.01,6.8487]
[1727816039039,6.8466,146.06,146.01,6.8487]
[1727816039353,22.6127,146.09,145.98,43.776884]
[1727816039526,29.4578,146.09,146.04,6.8473]
[1727816039757,29.4578,146.09,146.03,17.119]
[1727816039758,22.6127,146.09,146.03,17.119]
[1727816039927,6.8464,146.07,146.03,17.119]
[1727816040724,22.6127,146.09,146.0,17.1231]
[1727816040935,22.6127,146.09,146.04,17.1179]
[1727816041127,21.878,146.14,146.11,6.8441]
[1727816041352,21.878,146.14,146.04,31.57190876]
[1727816041353,21.878,146.14,146.09,17.1126]
[1727816041550,21.878,146.14,146.11,6.844]
[1727816041738,21.878,146.14,146.09,17.1126]
[1727816042331,28.7209,146.14,146.09,23.9576]
[1727816042529,21.878,146.14,146.02,20.0]
[1727816042732,6.8455,146.08,146.03,36.8478]
[1727816042943,6.846,146.07,146.03,53.9672]
[1727816043158,6.846,146.07,146.03,23.9672]
[1727816043767,6.8437,146.12,146.05,17.1165]
[1727816044056,6.8443,146.11,146.05,6.8465]
[1727816044261,38.9856,146.14,146.04,23.9654]
[1727816044553,6.8451,146.09,146.05,6.8468]
[1727816044756,6.8461,146.07,146.02,6.848]
[1727816045061,6.8461,146.07,146.01,17.1219]
[1727816045062,6.845,146.1,146.05,6.8468]
[1727816045275,21.878,146.14,146.08,6.8455]
[1727816045562,6.8433,146.13,146.08,6.8451]
[1727816045755,21.878,146.14,146.07,17.1142]
[1727816045931,6.8446,146.1,146.07,17.1142]
[1727816046132,21.878,146.14,146.04,17.1184]
[1727816046334,21.878,146.14,146.03,6.8478]
[1727816046335,6.8461,146.07,146.03,6.8478]
[1727816046541,6.8461,146.07,145.98,20.0]
[1727816046542,6.8454,146.09,146.04,6.8473]
[1727816046742,20.0,146.12,146.03,17.1191]
[1727816046956,6.8445,146.11,146.04,1.36919313]
[1727816047142,6.8437,146.12,146.07,6.8459]
[1727816047521,21.878,146.14,146.08,6.8452]
[1727816047522,6.8432,146.13,146.08,6.8452]
[1727816047641,21.878,146.14,146.1,6.8445]
[1727816047846,21.878,146.14,146.1,8.21320305]
[1727816048242,21.878,146.14,146.12,6.8436]
[1727816048441,21.878,146.14,146.11,17.1093]
[1727816048638,21.878,146.14,146.11,23.9533]
[1727816049163,21.878,146.14,146.06,20.0]
[1727816049455,28.7208,146.14,146.1,6.8443]
[1727816049662,21.878,146.14,146.1,6.8445]
[1727816049955,21.878,146.14,146.05,17.117]
[1727816050161,21.878,146.14,146.06,6.8464]
[1727816050162,6.8441,146.11,146.06,6.8464]
[1727816050342,23.776884,146.13,146.05,17.117]
[1727816050656,6.8465,146.06,146.02,6.8482]
[1727816050961,6.8465,146.06,145.99,17.1241]
[1727816050962,17.1124,146.1,145.99,17.1241]
[1727816051187,17.1124,146.1,145.98,34.2492]
[1727816051188,6.8459,146.08,146.02,6.8479]
[1727816051373,20.0,146.12,146.01,17.1213]
[1727816051374,6.8451,146.09,146.01,17.1213]
[1727816051561,6.8451,146.09,146.02,1.36930395]
[1727816051874,40.888084,146.11,146.01,23.97]
[1727816052070,6.847,146.05,146.01,17.1213]
[1727816052284,13.1912,146.04,145.99,6.8497]
[1727816052449,13.1912,146.04,145.95,17.1288]
[1727816052450,22.1736,146.04,145.95,17.1288]
[1727816052656,6.8489,146.01,145.96,6.8511]
[1727816052855,22.1736,146.04,145.95,17.1288]
[1727816052856,6.8493,146.0,145.95,23.9803]
[1727816053049,22.1736,146.04,145.95,17.1288]
[1727816053371,6.8488,146.01,145.95,23.98]
[1727816053571,22.1736,146.04,145.97,6.8506]
[1727816053870,22.1736,146.04,145.95,17.1288]
[1727816054062,22.1736,146.04,145.96,6.851]
[1727816054366,22.1736,146.04,145.95,17.1288]
[1727816054367,22.1736,146.04,145.94,31.57190876]
[1727816054580,22.1736,146.04,146.01,6.8484]
[1727816054752,22.1736,146.04,145.95,20.0]
[1727816055369,6.8498,145.99,145.94,6.8521]
[1727816055552,22.1736,146.04,145.91,34.2667]
[1727816055870,6.8483,146.03,145.97,6.8507]
[1727816056055,6.8479,146.03,145.97,17.1267]
[1727816056256,22.1736,146.04,145.97,17.1267]
[1727816056455,22.1736,146.04,146.0,17.1231]
[1727816056676,21.3332,146.09,146.03,6.8479]
[1727816056981,28.1783,146.09,146.03,6.8479]
[1727816057356,28.1783,146.09,146.02,17.12]
[1727816057357,21.3332,146.09,146.02,17.12]
[1727816057677,21.3332,146.09,146.03,6.8478]
[1727816057678,6.8459,146.08,146.03,6.8478]
[1727816058269,21.3332,146.09,146.02,17.12]
[1727816058454,6.8478,146.04,145.99,23.9734]
[1727816058654,6.848,146.03,145.99,17.1241]
[1727816058978,20.0,146.08,145.99,17.1241]
[1727816059173,6.8474,146.04,145.99,23.9738]
[1727816059375,20.0,146.08,145.95,34.2564]
[1727816059376,6.8485,146.02,145.97,6.8504]
[1727816059584,17.1152,146.07,145.95,17.128]
[1727816059751,6.848,146.03,145.98,6.8501]
[1727816059950,23.776884,146.06,145.97,17.1259]
[1727816060173,6.8488,146.01,145.97,17.1259]
[1727816060957,17.1152,146.07,145.97,17.1259]
[1727816061257,6.8479,146.03,145.99,6.8497]
[1727816061466,17.1152,146.07,145.99,6.8497]
[1727816062054,6.8479,146.03,145.98,6.8502]
[1727816062574,6.8475,146.04,145.99,6.8497]
[1727816063471,21.3332,146.09,145.91,65.83860876]
[1727816063472,21.3332,146.09,145.96,20.0]
[1727816063667,6.8461,146.07,146.02,6.8482]
[1727816063881,21.3332,146.09,146.01,23.9701]
[1727816064057,21.3332,146.09,146.01,17.1213]
[1727816064262,21.3332,146.09,146.0,6.8492]
[1727816064469,6.8475,146.04,145.98,17.1252]
[1727816064674,17.1145,146.08,145.98,23.9754]
[1727816064873,6.8478,146.04,145.98,23.9754]
[1727816065175,20.0,146.07,145.98,23.9754]
[1727816065380,6.8481,146.03,145.98,23.9754]
[1727816065775,6.8485,146.02,145.98,23.9754]
[1727816065957,17.1145,146.08,145.98,17.1252]
[1727816066273,6.8476,146.04,145.98,17.1252]
[1727816066473,6.8469,146.06,146.0,17.1227]
[1727816067061,21.3332,146.09,146.04,6.8473]
[1727816067276,38.74876272,146.1,146.01,20.0]
[1727816067582,38.74876272,146.1,146.0,31.57190876]
[1727816067583,38.74876272,146.1,146.06,17.1157]
[1727816067792,6.8461,146.07,146.03,17.1191]
[1727816068563,6.8465,146.06,146.02,6.8482]
[1727816069367,6.8461,146.07,146.02,6.8482]
[1727816069755,45.59366272,146.1,146.04,6.8469]
[1727816070162,38.74876272,146.1,145.99,34.2483]
[1727816070362,38.74876272,146.1,146.04,6.8473]
[1727816070560,38.74876272,146.1,145.99,34.2483]
[1727816071488,6.8465,146.06,146.01,6.8487]
[1727816071672,6.847,146.05,146.01,6.8487]
[1727816072072,23.776884,146.09,145.97,17.1262]
[1727816072073,23.2892,146.06,145.97,17.1262]
[1727816072393,6.8475,146.04,145.97,17.1262]
[1727816072682,23.2892,146.06,146.01,6.8487]
[1727816072683,30.1358,146.06,146.01,6.8487]
[1727816072892,6.8471,146.05,146.01,6.8487]
[1727816073098,6.8471,146.05,146.0,23.9723]
[1727816074361,30.1358,146.06,146.01,6.8484]
[1727816075608,45.29046272,146.1,145.99,20.0]
[1727816075889,45.29046272,146.1,146.03,6.8474]
[1727816076070,6.846,146.07,146.03,6.8474]
[1727816076683,6.8465,146.06,146.01,23.9703]
[1727816076991,6.846,146.07,146.01,17.1216]
[1727816077290,6.846,146.07,146.02,6.8482]
[1727816077291,6.8461,146.07,146.02,6.8482]
[1727816077513,45.29046272,146.1,145.94,34.2584]
[1727816077514,23.776884,146.09,145.94,34.2584]
[1727816077689,6.8493,146.0,145.96,17.1275]
[1727816077980,47.401184,146.03,145.93,17.1313]
[1727816078178,6.8503,145.98,145.93,23.9837]
[1727816078378,6.8507,145.97,145.93,17.1313]
[1727816078764,6.8503,145.98,145.93,23.9838]
[1727816079563,6.8503,145.98,145.88,34.2741]
[1727816079564,20.0,146.02,145.9,17.1346]
[1727816079805,17.1228,146.01,145.88,34.2741]
[1727816079971,6.8503,145.98,145.93,6.8525]
[1727816080383,17.1228,146.01,145.92,17.1317]
[1727816080581,16.0695,146.05,145.81,51.39377886]
[1727816080582,6.623,145.96,145.81,51.39377886]
[1727816080768,6.854,145.9,145.85,17.1397]
[1727816081103,6.854,145.9,145.85,23.996]
[1727816081570,6.8545,145.89,145.83,6.8568]
[1727816081770,6.8545,145.89,145.79,34.2954]
[1727816081771,16.4911,145.94,145.79,34.2954]
[1727816081968,16.4911,145.94,145.83,34.2848]
[1727816082173,16.4911,145.94,145.89,17.1361]
[1727816082795,16.4911,145.94,145.86,6.8554]
[1727816082990,16.4911,145.94,145.85,17.1397]
[1727816083180,16.4911,145.94,145.92,6.853]
[1727816083365,6.623,145.96,145.9,17.1349]
[1727816084268,6.623,145.96,145.92,6.853]
[1727816084886,6.623,145.96,145.94,6.8521]
[1727816085092,6.623,145.96,145.84,43.776884]
[1727816085093,13.4743,145.96,145.84,43.776884]
[1727816085283,6.8526,145.93,145.88,23.9909]
[1727816085672,6.623,145.96,145.89,6.8544]
[1727816085978,6.8521,145.94,145.89,6.8544]
[1727816086791,6.8521,145.94,145.88,23.9913]
[1727816087292,6.8535,145.91,145.85,23.9967]
[1727816087603,6.623,145.96,145.84,20.0]